Cogmind - Beta 12 @@@ ROGUE MODE // 2023.07.26 @ 18:39:55 Player: Raix Result: Destroyed by H-55 Commando with Assault Rifle Performance ------------- Evolutions (2) 1000 Regions Visited (7) 1400 Robots Destroyed (10) 50 Value Destroyed (190) 190 Prototype IDs (5) 100 Alien Tech Used (0) 0 Bonus (0) 0 TOTAL SCORE: 2740 Bonus ------- None Cogmind --------- Core Integrity 0/550 Matter 300/300 Energy 99/100 System Corruption 4% Temperature Cool (0) Movement Core (50) Location -8/Storage Parts ------- > --- POWER (3) -------- (None) > --- PROPULSION (4) --- (None) > --- UTILITY (2) ------ Signal Interpreter Signal Interpreter > --- WEAPON (2) ------- (None) > --- INVENTORY (5) ---- Improved Ion Engine Improved Medium Laser Advanced Beam Cannon Advanced Beam Cannon Peak State ------------ > --- POWER ------------ Light Ion Engine > --- PROPULSION ------- Flight Unit Flight Unit Flight Unit Flight Unit > --- UTILITY ---------- Signal Interpreter Signal Interpreter > --- WEAPON ----------- Advanced Beam Rifle Advanced Beam Cannon > --- INVENTORY -------- Flight Unit Improved Medium Laser Advanced Beam Cannon Advanced Beam Cannon [Rating: 15] Favorites ----------- Power Light Ion Engine Engine Light Ion Engine Propulsion Flight Unit Flight Unit Flight Unit Utility Signal Interpreter Processor Signal Interpreter Weapon Advanced Beam Cannon Energy Gun Medium Laser Energy Cannon Advanced Beam Cannon Build | -11 -10 -9 -9 -9 -8 -8 -8 ------- Run | Jun Mat Mat Min Exi Min Mat Sto Slots Evolved 4 | . . 2 . . . 2 . Power 2 | . . 1 . . . 1 . Propulsion 2 | . . 1 . . . 1 . Utility . | . . . . . . . . Weapon . | . . . . . . . . Parts Attached 17 | . 1 9 . . . 6 1 Power 2 | . . 2 . . . . . Engine 2 | . . 2 . . . . . Core . | . . . . . . . . Reactor . | . . . . . . . . Propulsion 5 | . . 2 . . . 2 1 Treads . | . . . . . . . . Leg . | . . . . . . . . Wheel . | . . . . . . . . Hover . | . . . . . . . . Flight 5 | . . 2 . . . 2 1 Utility 2 | . . 2 . . . . . Device . | . . . . . . . . Storage . | . . . . . . . . Processor 2 | . . 2 . . . . . Hackware . | . . . . . . . . Protection . | . . . . . . . . Artifact . | . . . . . . . . Weapon 8 | . 1 3 . . . 4 . Energy Gun 5 | . 1 3 . . . 1 . Energy Cannon 3 | . . . . . . 3 . Ballistic Gun . | . . . . . . . . Ballistic Cannon . | . . . . . . . . Launcher . | . . . . . . . . Special Weapon . | . . . . . . . . Impact Weapon . | . . . . . . . . Slashing Weapon . | . . . . . . . . Piercing Weapon . | . . . . . . . . Special Melee Weapon . | . . . . . . . . Unidentified Prototypes 3 | . . 1 . . . 2 . Parts Lost 10 | . . 2 . . . . 8 Power 2 | . . 1 . . . . 1 Propulsion 5 | . . . . . . . 5 Utility . | . . . . . . . . Weapon 3 | . . 1 . . . . 2 Highest Loss Streak 8 | . . 2 . . . . 8 To Critical Strikes . | . . . . . . . . Average Slot Usage (%) 41 | . 2 44 . 55 55 60 40 Engine 5 | . . 6 . 11 11 9 1 Flight 13 | . . 11 . 22 22 22 14 Processor 16 | . . 19 . 22 22 18 18 Energy Gun 3 | . 2 7 . . . 3 3 Energy Cannon 1 | . . . . . . 7 3 Naked Turns 73 | . 59 14 . . . . . Heaviest Build 11 | . 2 11 3 3 3 9 9 Greatest Support 16 | 3 3 8 8 8 8 16 16 Greatest Overweight (x) 1 | . . 1 . . . . 1 Average Overweight (x) . | . . . . . . . . Largest Inventory Capacity 5 | 5 5 5 5 5 5 5 5 Average Capacity 5 | 5 5 5 5 5 5 5 5 Most Carried 5 | . 1 3 1 1 1 5 5 Average Carried 1 | . . . 1 1 1 3 4 Final Capacity 5 | 5 5 5 5 5 5 5 5 Final Carried 5 | . 1 1 1 1 1 5 4 Class Distribution -------------------- 77% | Mutant 16% | Scavenger-Mutant 6% | Scavenger-Sprinter Dominant Class ---------------- Mutant | -10/Materials Mutant | -9/Materials Mutant | -9/Mines Mutant | -9/Exiles Mutant | -8/Mines Mutant | -8/Materials Mutant | -8/Storage Resources | -11 -10 -9 -9 -9 -8 -8 -8 ----------- Run | Jun Mat Mat Min Exi Min Mat Sto Matter Collected 350 | 180 30 80 . . . 60 . Remotely . | . . . . . . . . Salvage Created 288 | . 34 145 . . . 109 . Parts 21 | . 2 10 . . . 9 . Haulers Intercepted . | . . . . . . . . Recyclers Shooed . | . . . . . . . . Parts Field Recycled . | . . . . . . . . Retrieved Matter . | . . . . . . . . Parts Self-Destructed . | . . . . . . . . Prevented . | . . . . . . . . Kills | -11 -10 -9 -9 -9 -8 -8 -8 ------- Run | Jun Mat Mat Min Exi Min Mat Sto Combat Hostiles Destroyed 9 | . 1 4 . . . 4 . Guns 5 | . 1 4 . . . . . Cannons 4 | . . . . . . 4 . Classes Destroyed 4 | . 1 3 . . . . . Recycler 1 | . . 1 . . . . . Swarmer 6 | . . 3 . . . 3 . Grunt 1 | . 1 . . . . . . Sentry 2 | . . 1 . . . 1 . Best Kill Streak 4 | . 1 3 . . . 4 . Combat Bots Only 4 | . 1 3 . . . 4 . Max Kills in Single Turn 1 | . 1 1 . . . 1 . Gunslinging . | . . . . . . . . Exploded . | . . . . . . . . Melee . | . . . . . . . . Uniques/NPCs Destroyed . | . . . . . . . . Combat | -11 -10 -9 -9 -9 -8 -8 -8 -------- Run | Jun Mat Mat Min Exi Min Mat Sto Damage Taken 1375 | . 79 332 . . . 47 917 Core 821 | . 57 203 . . . 16 545 Absorbed by Shields . | . . . . . . . . Core Remaining (%) 75 | 100 77 . . . 49 . . Volleys Fired 38 | . 5 22 . . . 8 3 Largest 2 | . 1 2 . . . 2 2 Hottest 129 | . 50 106 . . . 129 129 Shots Fired 46 | . 5 26 . . . 9 6 Gun 35 | . 5 26 . . . 1 3 Cannon 11 | . . . . . . 8 3 Launcher . | . . . . . . . . Special . | . . . . . . . . Kinetic . | . . . . . . . . Thermal 46 | . 5 26 . . . 9 6 Explosive . | . . . . . . . . Electromagnetic . | . . . . . . . . Robot Hit Streak 6 | . 3 6 . . . 2 6 Robot Miss Streak 4 | . 2 4 . . . 2 1 Penetration Max . | . . . . . . . . Secondary Targets . | . . . . . . . . Shots Hit Robots 30 | . 3 17 . . . 5 5 Core Hits 19 | . 2 10 . . . 4 3 Critical Kills . | . . . . . . . . Critical Parts Destroyed . | . . . . . . . . Critical Strikes 1 | . 1 . . . . . . Burn 1 | . 1 . . . . . . Melee Attacks . | . . . . . . . . Impact . | . . . . . . . . Slashing . | . . . . . . . . Piercing . | . . . . . . . . Sneak Attacks . | . . . . . . . . Combat Hostiles . | . . . . . . . . Follow-up Attacks . | . . . . . . . . Damage Inflicted 482 | . 37 228 . . . 100 117 Guns 325 | . 37 228 . . . . 60 Cannons 141 | . . . . . . 100 41 Explosions . | . . . . . . . . Melee . | . . . . . . . . Ramming 16 | . . . . . . . 16 Kinetic . | . . . . . . . . Thermal 466 | . 37 228 . . . 100 101 Explosive . | . . . . . . . . Electromagnetic . | . . . . . . . . Impact . | . . . . . . . . Slashing . | . . . . . . . . Piercing . | . . . . . . . . Highest Corruption 4 | . . . . . . . 4 Average Corruption 2 | . . . . . . . 2 Corruption Purged . | . . . . . . . . Corruption Blocked . | . . . . . . . . Effects 2 | . . . . . . . 2 Message Errors 2 | . . . . . . . 2 Overload Shots . | . . . . . . . . Overflow Damage . | . . . . . . . . Projectiles . | . . . . . . . . Explosions . | . . . . . . . . Melee . | . . . . . . . . Knockbacks . | . . . . . . . . Impact . | . . . . . . . . Kinetic . | . . . . . . . . Secondary . | . . . . . . . . Self-Inflicted Damage 7 | . . . . . . . 7 Shots . | . . . . . . . . Rammed 7 | . . . . . . . 7 Targets Rammed 7 | . . . . . . . 7 Kicked . | . . . . . . . . Crushed . | . . . . . . . . Highest Temperature 297 | . 30 297 . . . 140 137 Average Temperature 87 | . 19 122 . . . 63 82 Received Heat Transfer 324 | . 42 102 . . . . 180 Siege Activations . | . . . . . . . . Robots Corrupted . | . . . . . . . . Combat Hostiles . | . . . . . . . . Parts Fried . | . . . . . . . . Impact Corruptions . | . . . . . . . . Robots Melted . | . . . . . . . . Combat Hostiles . | . . . . . . . . Parts Melted 2 | . 1 . . . . 1 . Heat Transferred 1184 | . 185 629 . . . 185 185 Parts Sabotaged . | . . . . . . . . Parts Stolen . | . . . . . . . . Parts Stripped . | . . . . . . . . Power Chain Reactions . | . . . . . . . . Missiles Intercepted . | . . . . . . . . Alert | -11 -10 -9 -9 -9 -8 -8 -8 ------- Run | Jun Mat Mat Min Exi Min Mat Sto Peak Influence 154 | . 50 140 54 . . 130 154 Initial 54 | . . 20 54 . . . 54 Average 62 | . 17 74 54 . . 46 91 Maximum Alert Level . | . . . . . . . . Low Security (%) 100 | 100 100 100 100 . 100 100 100 Level 1 . | . . . . . . . . Level 2 . | . . . . . . . . Level 3 . | . . . . . . . . Level 4 . | . . . . . . . . Level 5 . | . . . . . . . . High Security . | . . . . . . . . Max Security . | . . . . . . . . Squads Dispatched 2 | . 2 . . . . . . Investigation 1 | . 1 . . . . . . Extermination . | . . . . . . . . Reinforcement 1 | . 1 . . . . . . Assault . | . . . . . . . . Garrison . | . . . . . . . . Intercept . | . . . . . . . . Searches Triggered . | . . . . . . . . Construction Impeded . | . . . . . . . . Haulers Reinforced . | . . . . . . . . Active Scanning Responses . | . . . . . . . . Cargo Convoy Interrupts . | . . . . . . . . Stealth | -11 -10 -9 -9 -9 -8 -8 -8 --------- Run | Jun Mat Mat Min Exi Min Mat Sto Distress Signals 2 | . . . . . . . 2 Communications Jammed . | . . . . . . . . Distress Signals . | . . . . . . . . Times Spotted 44 | . 5 15 . . . 4 20 Peak Tracking Total 15 | . 3 10 . . . 3 15 Tactical Retreats 2 | . . . . . . . 2 Traps | -11 -10 -9 -9 -9 -8 -8 -8 ------- Run | Jun Mat Mat Min Exi Min Mat Sto Traps Triggered 4 | . 1 . . . . . 3 Indirectly . | . . . . . . . . Trap Hack Attempts . | . . . . . . . . Triggered . | . . . . . . . . Disarmed . | . . . . . . . . Reprogrammed . | . . . . . . . . Reused . | . . . . . . . . Traps Extracted . | . . . . . . . . Installed . | . . . . . . . . Triggered . | . . . . . . . . Machines | -11 -10 -9 -9 -9 -8 -8 -8 ---------- Run | Jun Mat Mat Min Exi Min Mat Sto Machines Disabled . | . . . . . . . . Max in Single Turn . | . . . . . . . . Machines Repaired . | . . . . . . . . Machines Sabotaged . | . . . . . . . . Overloaded Fab Kills . | . . . . . . . . Hacking | -11 -10 -9 -9 -9 -8 -8 -8 --------- Run | Jun Mat Mat Min Exi Min Mat Sto Machines Accessed 2 | . . 1 . 1 . . . Terminals 1 | . . 1 . . . . . Fabricators . | . . . . . . . . Repair Stations . | . . . . . . . . Recycling Units . | . . . . . . . . Scanalyzers . | . . . . . . . . Garrison Access . | . . . . . . . . Total Hacks 10 | . . 2 . 8 . . . Successful 9 | . . 1 . 8 . . . Failed 1 | . . 1 . . . . . Catastrophic . | . . . . . . . . Database Lockouts . | . . . . . . . . Manual . | . . . . . . . . Terminals 2 | . . 2 . . . . . Fabricators . | . . . . . . . . Repair Stations . | . . . . . . . . Recycling Units . | . . . . . . . . Scanalyzers . | . . . . . . . . Garrison Access . | . . . . . . . . Terminal Hacks 9 | . . 1 . 8 . . . Record 8 | . . . . 8 . . . Prototype ID Bank 1 | . . 1 . . . . . Fabricator Hacks . | . . . . . . . . Repair Station Hacks . | . . . . . . . . Recycling Unit Hacks . | . . . . . . . . Scanalyzer . | . . . . . . . . Garrison Access Hacks . | . . . . . . . . Unauthorized Hacks . | . . . . . . . . Terminals . | . . . . . . . . Fabricators . | . . . . . . . . Repair Stations . | . . . . . . . . Recycling Units . | . . . . . . . . Scanalyzers . | . . . . . . . . Garrison Access . | . . . . . . . . Data Cores Recovered . | . . . . . . . . Used . | . . . . . . . . Hacking Detections 1 | . . 1 . . . . . Full Trace Events . | . . . . . . . . Feedback Events . | . . . . . . . . Feedback Blocked . | . . . . . . . . Robot Schematics Acquired . | . . . . . . . . Robots Built . | . . . . . . . . Authchips . | . . . . . . . . Time . | . . . . . . . . Total Robot Build Rating . | . . . . . . . . Part Schematics Acquired . | . . . . . . . . Parts Built . | . . . . . . . . Authchips . | . . . . . . . . Time . | . . . . . . . . Total Part Build Rating . | . . . . . . . . Parts Repaired . | . . . . . . . . Time . | . . . . . . . . Parts Recycled . | . . . . . . . . Recycled Matter . | . . . . . . . . Retrieved Matter . | . . . . . . . . Retrieved Components . | . . . . . . . . Parts Scanalyzed . | . . . . . . . . Part Schematics Acquired . | . . . . . . . . Parts Damaged . | . . . . . . . . Bothacking | -11 -10 -9 -9 -9 -8 -8 -8 ------------ Run | Jun Mat Mat Min Exi Min Mat Sto Used RIF Installer . | . . . . . . . . Robots Hacked . | . . . . . . . . Non-combat . | . . . . . . . . Combat . | . . . . . . . . Robot Hacks Applied . | . . . . . . . . Relay Couplers Released . | . . . . . . . . Fabnet Peak Effective % . | . . . . . . . . Robots Rewired . | . . . . . . . . Allies Hacked . | . . . . . . . . Hacks Repelled . | . . . . . . . . Allies | -11 -10 -9 -9 -9 -8 -8 -8 -------- Run | Jun Mat Mat Min Exi Min Mat Sto Total Allies . | . . . . . . . . Largest Group . | . . . . . . . . Highest-Rated Group . | . . . . . . . . Highest-Rated Ally . | . . . . . . . . Total Orders . | . . . . . . . . Ally Attacks . | . . . . . . . . Total Damage . | . . . . . . . . Kills . | . . . . . . . . Allies Corrupted . | . . . . . . . . Allies Melted . | . . . . . . . . Intel | -11 -10 -9 -9 -9 -8 -8 -8 ------- Run | Jun Mat Mat Min Exi Min Mat Sto Robot Analysis Total . | . . . . . . . . Derelict Logs Recovered . | . . . . . . . . Drone Launches . | . . . . . . . . Drone Recoveries . | . . . . . . . . Exploration | -11 -10 -9 -9 -9 -8 -8 -8 ------------- Run | Jun Mat Mat Min Exi Min Mat Sto Turns Passed 555 | 23 73 143 6 87 8 59 156 Spaces Moved 922 | 46 102 166 15 234 21 75 263 Core 353 | 46 102 64 . . . . 141 Treads . | . . . . . . . . Legs . | . . . . . . . . Wheels . | . . . . . . . . Hover . | . . . . . . . . Flight 569 | . . 102 15 234 21 75 122 Fastest Speed 31 | 50 50 37 37 37 37 31 31 Average Speed 42 | 50 50 47 37 37 37 35 43 Slowest Speed 120 | 50 50 117 37 37 37 37 120 Overloaded Moves . | . . . . . . . . Propulsion Burnouts . | . . . . . . . . Robots Hopped 2 | . . 1 . . . . 1 Cave-ins Triggered . | . . . . . . . . Exploration Rate (%) 23 | 4 19 19 7 56 13 7 64 Regions Visited 7 Branch Regions 4 Pre-discovered Areas 2 | . . . . 1 . . 1 Known Exits Taken 5 | . . 1 1 1 1 1 . Unknown Exits Taken 2 | 1 1 . . . . . . Scrap Searched . | . . . . . . . . Spaces Dug . | . . . . . . . . Terrain Destroyed . | . . . . . . . . Melee . | . . . . . . . . Projectile . | . . . . . . . . AOE . | . . . . . . . . Terrain Rammed . | . . . . . . . . Walls Destroyed . | . . . . . . . . Machines Disabled . | . . . . . . . . Actions | -11 -10 -9 -9 -9 -8 -8 -8 --------- Run | Jun Mat Mat Min Exi Min Mat Sto Total 1030 | 45 118 204 14 233 20 98 298 Wait 21 | . 9 . . . . . 12 Move 911 | 45 101 163 14 233 20 74 261 Hop 2 | . . 1 . . . . 1 Pick Up 16 | . 1 7 . . . 8 . Fast Attach . | . . . . . . . . Attach 17 | . 1 9 . . . 6 1 Detach 5 | . 1 2 . . . 2 . Swap . | . . . . . . . . Drop . | . . . . . . . . Fire 38 | . 5 22 . . . 8 3 Melee . | . . . . . . . . Ram 7 | . . . . . . . 7 Kick . | . . . . . . . . Crush . | . . . . . . . . Escape Stasis 13 | . . . . . . . 13 Rewire . | . . . . . . . . Trap . | . . . . . . . . Miscellaneous . | . . . . . . . . Route ------- -11/Junkyard -10/Materials -9/Materials -9/Mines -9/Exiles -8/Mines -8/Materials -8/Storage History --------- Turn | Location | Event 4 | -11/Junkyard | Discovered new exit (range 15) 24 | -11/Junkyard | Entered Materials 54 | -10/Materials | Discovered new exit (range 15) 97 | -10/Materials | Entered another Materials area 97 | -9/Materials | Evolved 2 slots: Power x1, Propulsion x1 236 | -9/Materials | Core integrity fell below 50% 238 | -9/Materials | Discovered new exit (range 8) 240 | -9/Materials | Identified exit to Mines 240 | -9/Materials | Entered Mines 243 | -9/Mines | Deemed a non-threat by the Exiles lab entrance 244 | -9/Mines | Discovered new exit (range 5) 245 | -9/Mines | Identified exit to Exiles 246 | -9/Mines | Entered Exiles 255 | -9/Exiles | Met 8R-AWN 276 | -9/Exiles | Met EX-HEX 298 | -9/Exiles | Met EX-DEC 309 | -9/Exiles | Learned location of Zion (-6) 328 | -9/Exiles | Discovered new exit (range 12) 332 | -9/Exiles | Identified exit to Mines 333 | -9/Exiles | Entered Mines 336 | -8/Mines | Discovered new exit (range 12) 340 | -8/Mines | Identified exit to Materials 341 | -8/Mines | Entered Materials 341 | -8/Materials | Evolved 2 slots: Power x1, Propulsion x1 381 | -8/Materials | Discovered new exit (range 15) 400 | -8/Materials | Identified exit to Storage 400 | -8/Materials | Entered Storage 470 | -8/Storage | Core integrity fell below 50% 496 | -8/Storage | Core integrity fell below 20% 502 | -8/Storage | Lost 8 parts (1p5n2w) 534 | -8/Storage | Learned location of Armory (-3) 556 | -8/Storage | Destroyed by H-55 Commando with Assault Rifle Last Messages --------------- 00491_ Slammed into Y-45 Defender. 00495_ Destabilizing: Core damaged (-11). 00496_ Slammed into Y-45 Defender. 00496_ Destabilizing: System corrupted (+2). 00497_ Slammed into Y-45 Defender. 00501_ WGG7W0E<#>OI6&:F%3 Q:A 00516_ R-06 Scavenger inserts Terrain Scan Processor into recycling unit. 00532_ A derelict emerges from hiding: "Psst-beep. Hey you, we've already cleared out from here, don't stick around. I stayed behind to warn any stragglers, and you certainly look like you're straggling." 00534_ OS-686(g): "We'll attack Armory later, meet at one of the rendevous points." World map updated: -3/Armory. 00534_ OS-686(g) slips back into hiding. 00536_ Triggered Shock Trap. 00536_ The floor emits a surge of raw power. 00536_ System corrupted (+2). 00537_ Slug penetrates Wall. 00547_ : ,NNSWV%NHAMDX1PFRKN:LE 00556_ Slug penetrates Wall. Map ----- +----------------------------------------------------+ | | | | | | | | | | | | | | | | | | | | | | | | | | | | | | | | | | | | | ?????????????????????????????????????????????????? | | ####??????????????????????????????????#####??????? | | #"T"#????????########?????????????????# #??????? | | ?????### ?????????????????# #??????? | | "?????#"" """ ????????????????# #????### | | """#??#"T "T" """ ##################+###### | | """#???"" """ ## # | | """#????# """ ##@ # | | """#????# """ ## g# ######## | | #????# """ ## g Yg g/ """ #??????? | | #????# # h Y Y # """ #??????? | | ?? ??????#####+###### """ """ #^ """ !#??????? | | ####+########### #?## """ """ # """ #??????? | | #?# """ """ # """ #?""""?? | | #?############ ### #?? | | #????????????# ##T #?? | | ### ########## #????????????# #### ### ### | | ??# #????????#### ##?????########+##?# # | | ??# #???????????# #??????# ### / | | ??# #??#######??#%#??????# + " # | | ??# #? ???#%######## """""" ### "G" # | | ??# #? """ ???#%## # "????" #?# " " # | | ??# # """ ####%## # "????" #?# # | | ??# # """ / %%% / """""" #?# # | | ??# / ####### # + ]!! # | | ??# # """ #?????# = # ## ]!! # | | ??# # | """ ??????## ############# !!! ### | | ??#* %#? """ ???????# #???????????# ""? | | ??#!%*#? ???????# #???????????# T"? | | ??#!=!#??#######??????# #???????????# ""? | | ??# [[#? """"????????+ +???????????# ##? | | ??# #? """"????????# # ??????????# #?? | +----------------------------------------------------+ Best States ------------- Heat Dissipation 31 Energy Generation 15 Energy Capacity 150 Matter Stores 300 Matter Capacity 300 Sight Range 16 Terrain Scan Density 10 Evasion (%) 63 Item Schematics ----------------- None Robot Schematics ------------------ None Fabricated ------------ Nothing Alien Tech Used ----------------- None Achievements -------------- None Challenges ------------ None Game ------ Seed AnalysisShadeRefractor Manual? 0 Play Time 00:14:55 Cumulative 17.0 hours Start 2023.07.26 @ 18:25:28 End 2023.07.26 @ 18:39:55 Sessions 1 Manual Loads 0 Difficulty Rogue Special Mode None Game No. 41 Rogue 40 Adventurer 1 Explorer 0 Win Type - Total 0 Types 0/0/0/0/0/0/0/0/0 Lore% 21 Gallery% 28 Achievement% 21 Wizard Run 0 Options --------- ASCII 0 Keyboard 0 Movement Numpad Keybinds 0 Fullscreen 1 Font 18/SmallcapsGlow Map View 76x50 Tactical HUD 1 Map Filters NONE Filters NONE Steam 1 RUN: e71cbcab-7f76-4051-9142-dd7f447d6129